fUSD/lending_fUSD_20240210
["ID","MTS","AMOUNT","RATE_DAILY","PERIOD"]
[313713546,1707601851263,-500.0,0.0003863,30]
[313713547,1707601851273,-500.0,0.0003863,30]
[313713548,1707601851282,-822.96,0.0003863,30]
[313713549,1707601851291,-521.18,0.0003863,30]
[313713550,1707601851300,-500.0,0.0003863,30]
[313713551,1707601851309,-635.8,0.0003863,30]
[313713552,1707601851318,-500.0,0.0003863,30]
[313713553,1707601851327,-500.0,0.0003863,30]
[313713554,1707601851336,-736.74,0.0003863,30]
[313713555,1707601851345,-512.21552459,0.0003863,30]
[313713556,1707601851354,-500.0,0.0003863,30]
[313713557,1707601851364,-500.0,0.0003863,30]
[313713558,1707601851373,-500.0,0.0003863,30]
[313713559,1707601851382,-500.0,0.0003863,30]
[313713560,1707601851391,-500.0,0.0003863,30]
[313713561,1707601851401,-500.0,0.0003863,30]
[313713562,1707601851411,-612.75,0.0003863,30]
[313713563,1707601851422,-203.26945113,0.0003863,30]
[313713564,1707601851432,-1379.06,0.0003863,30]
[313713565,1707601851442,-500.0,0.0003863,30]
[313713566,1707601851451,-500.0,0.0003863,30]
[313713567,1707601851461,-500.0,0.0003863,30]
[313713568,1707601851471,-679.06,0.0003863,30]
[313713569,1707601851481,-500.0,0.0003863,30]
[313713570,1707601851491,-500.0,0.0003863,30]
[313713571,1707601851500,-500.0,0.0003863,30]
[313713572,1707601851510,-500.0,0.0003863,30]
[313713573,1707601851520,-500.0,0.0003863,30]
[313713574,1707601851529,-500.0,0.0003863,30]
[313713575,1707601851539,-1217.08,0.0003863,30]
[313713576,1707601851548,-500.0,0.0003863,30]
[313713577,1707601851561,-778.92,0.0003863,30]
[313713578,1707601851574,-500.0,0.0003863,30]
[313713579,1707601851583,-500.0,0.0003863,30]
[313713580,1707601851592,-500.0,0.0003863,30]
[313713581,1707601851601,-500.0,0.0003863,30]
[313713582,1707601851612,-810.84,0.0003863,30]
[313713583,1707601851622,-1841.8,0.0003863,30]
[313713584,1707601851632,-500.0,0.0003863,30]
[313713585,1707601851642,-500.0,0.0003863,30]
[313713586,1707601851654,-500.0,0.0003863,30]
[313713587,1707601851665,-500.0,0.0003863,30]
[313713588,1707601851675,-500.0,0.0003863,30]
[313713589,1707601851685,-500.0,0.0003863,30]
[313713590,1707601851695,-1857.97,0.0003863,30]
[313713591,1707601851704,-500.0,0.0003863,30]
[313713592,1707601851714,-500.0,0.0003863,30]
[313713593,1707601851723,-500.0,0.0003863,30]
[313713594,1707601851733,-549.96,0.0003863,2]
[313713595,1707601851742,-500.0,0.0003863,30]
[313713596,1707601851751,-1015.73,0.0003863,30]
[313713597,1707601851761,-889.74,0.0003863,30]
[313713598,1707601851770,-500.0,0.0003863,30]
[313713599,1707601851779,-639.74,0.0003863,30]
[313713600,1707601851789,-500.0,0.0003863,30]
[313713601,1707601851799,-500.0,0.0003863,30]
[313713602,1707601851810,-561.28,0.0003863,30]
[313713603,1707601851819,-500.0,0.0003863,30]
[313713604,1707601851829,-227.30073766,0.0003863,30]
[313713605,1707601851839,-535.82,0.0003863,30]
[313713606,1707601851848,-500.0,0.0003863,30]
[313713607,1707601851858,-500.0,0.0003863,30]
[313713608,1707601851867,-500.0,0.0003863,30]
[313713609,1707601851877,-1302.06,0.0003863,30]
[313713610,1707601851886,-500.0,0.0003863,30]
[313713611,1707601851895,-500.0,0.0003863,30]
[313713612,1707601851904,-1316.65,0.0003863,30]
[313713613,1707601851913,-500.0,0.0003863,30]
[313713614,1707601851923,-504.84,0.0003863,30]
[313713615,1707601851932,-500.0,0.0003863,30]
[313713616,1707601851941,-500.0,0.0003863,30]
[313713617,1707601851950,-1662.06,0.0003863,30]
[313713618,1707601851959,-500.0,0.0003863,30]
[313713619,1707601851968,-500.0,0.0003863,30]
[313713620,1707601851978,-500.0,0.0003863,30]
[313713621,1707601851987,-557.17,0.0003863,30]
[313713622,1707601851998,-574.72,0.0003863,30]
[313713623,1707601852008,-500.0,0.0003863,30]
[313713624,1707601852018,-500.0,0.0003863,30]
[313713625,1707601852027,-500.0,0.0003863,30]
[313713626,1707601852036,-500.0,0.0003863,30]
[313713627,1707601852045,-500.0,0.0003863,30]
[313713628,1707601852055,-500.0,0.0003863,30]
[313713629,1707601852064,-500.0,0.0003863,30]
[313713630,1707601852073,-3039.75,0.0003863,30]
[313713631,1707601852083,-641.81,0.0003863,30]
[313713632,1707601852092,-500.0,0.0003863,30]
[313713633,1707601852101,-500.0,0.0003863,30]
[313713634,1707601852110,-500.0,0.0003863,30]
[313713635,1707601852119,-500.0,0.0003863,30]
[313713636,1707601852128,-820.4,0.0003863,30]
[313713637,1707601852137,-1352.04,0.0003863,30]
[313713638,1707601852147,-519.24,0.0003863,30]
[313713639,1707601852165,-500.0,0.0003863,30]
[313713640,1707601852177,-500.0,0.0003863,30]
[313713641,1707601852186,-531.75,0.0003863,30]
[313713642,1707601852196,-500.0,0.0003863,30]
[313713643,1707601852206,-500.0,0.0003863,30]
[313713644,1707601852215,-561.05,0.0003863,30]
[313713645,1707601852225,-500.0,0.0003863,30]
[313713646,1707601852235,-693.34,0.0003863,30]
[313713647,1707601852245,-3416.57,0.0003863,30]
[313713648,1707601852255,-500.0,0.0003863,30]
[313713649,1707601852265,-500.0,0.0003863,30]
[313713650,1707601852274,-551.85,0.0003863,30]
[313713651,1707601852284,-500.0,0.0003863,30]
[313713652,1707601852294,-249.02,0.0003863,30]
[313713653,1707601852304,-500.0,0.0003863,30]
[313713654,1707601852313,-523.22,0.0003863,30]
[313713655,1707601852323,-642.83,0.0003863,30]
[313713656,1707601852333,-500.0,0.0003863,30]
[313713657,1707601852342,-500.0,0.0003863,30]
[313713658,1707601852352,-500.0,0.0003863,30]
[313713659,1707601852362,-500.0,0.0003863,30]
[313713660,1707601852372,-344.45,0.0003863,30]
[313713661,1707601852382,-500.0,0.0003863,30]
[313713662,1707601852392,-500.0,0.0003863,30]
[313713663,1707601852402,-500.0,0.0003863,30]
[313713664,1707601852411,-500.0,0.0003863,30]
[313713665,1707601852421,-500.0,0.0003863,30]
[313713666,1707601852431,-500.0,0.0003863,30]
[313713667,1707601852441,-500.0,0.0003863,30]
[313713668,1707601852451,-878.41,0.0003863,30]
[313713669,1707601852461,-500.0,0.0003863,30]
[313713670,1707601852471,-266.04408755,0.0003863,30]
[313713671,1707601852480,-500.0,0.0003863,30]
[313713672,1707601852490,-500.0,0.0003863,30]
[313713673,1707601852499,-1509.53,0.0003863,30]
[313713674,1707601852509,-500.0,0.0003863,30]
[313713675,1707601852519,-500.0,0.0003863,30]
[313713676,1707601852529,-500.0,0.0003863,30]
[313713677,1707601852539,-863.6,0.0003863,5]
[313713678,1707601852548,-500.0,0.0003863,30]
[313713679,1707601852560,-500.0,0.0003863,30]
[313713680,1707601852572,-514.71316624,0.0003863,30]
[313713681,1707601852583,-1068.6,0.0003863,30]
[313713682,1707601852596,-500.0,0.0003863,30]
[313713683,1707601852607,-500.0,0.0003863,30]
[313713684,1707601852617,-209.1178707,0.0003863,30]
[313713685,1707601852627,-500.0,0.0003863,30]
[313713686,1707601852639,-981.77,0.0003863,30]
[313713687,1707601852649,-514.21363204,0.0003863,30]
[313713688,1707601852659,-299.75058782,0.0003863,30]
[313713689,1707601852670,-500.0,0.0003863,30]
[313713690,1707601852680,-2683.19,0.0003863,30]
[313713691,1707601852690,-500.0,0.0003863,30]
[313713692,1707601852701,-500.0,0.0003863,30]
[313713693,1707601852712,-500.0,0.0003863,30]
[313713694,1707601852722,-500.0,0.0003863,30]
[313713695,1707601852733,-828.45,0.0003863,30]
[313713696,1707601852744,-1734.41,0.0003863,30]
[313713697,1707601852754,-500.0,0.0003863,30]
[313713698,1707601852764,-500.0,0.0003863,30]
[313713699,1707601852774,-500.0,0.0003863,30]
[313713700,1707601852784,-500.0,0.0003863,30]
[313713701,1707601852794,-2401.7,0.0003863,30]
[313713702,1707601852805,-500.0,0.0003863,30]
[313713703,1707601852815,-500.0,0.0003863,30]
[313713704,1707601852825,-500.0,0.0003863,30]
[313713705,1707601852834,-500.0,0.0003863,30]
[313713706,1707601852845,-1796.69,0.0003863,30]
[313713707,1707601852854,-500.0,0.0003863,30]
[313713708,1707601852867,-635.08,0.0003863,30]
[313713709,1707601852878,-500.0,0.0003863,30]
[313713710,1707601852889,-558.32,0.0003863,30]
[313713711,1707601852899,-500.0,0.0003863,30]
[313713712,1707601852909,-668.46,0.0003863,30]
[313713713,1707601852919,-2258.53,0.0003863,30]
[313713714,1707601852930,-500.0,0.0003863,30]
[313713715,1707601852940,-1436.75,0.0003863,30]
[313713716,1707601852950,-439.73823556,0.0003863,30]
[313713717,1707601852960,-500.0,0.0003863,30]
[313713718,1707601852970,-500.0,0.0003863,30]
[313713719,1707601852981,-630.77,0.0003863,30]
[313713720,1707601852991,-1973.1,0.0003863,30]
[313713721,1707601853003,-399.30327831,0.0003863,30]
[313713722,1707601853013,-500.0,0.0003863,30]
[313713723,1707601853023,-3251.25,0.0003863,30]
[313713724,1707601853033,-1594.12,0.0003863,30]
[313713725,1707601853043,-4524.13,0.0003863,30]
[313713726,1707601853054,-624.13,0.0003863,30]
[313713727,1707601853064,-544.25,0.0003863,30]
[313713728,1707601853074,-500.0,0.0003863,30]
[313713729,1707601853085,-500.0,0.0003863,30]
[313713730,1707601853095,-500.0,0.0003863,30]
[313713731,1707601853106,-500.0,0.0003863,30]
[313713732,1707601853117,-500.0,0.0003863,30]
[313713733,1707601853131,-500.0,0.0003863,30]
[313713734,1707601853142,-1257.23,0.0003863,30]
[313713735,1707601853153,-500.0,0.0003863,30]
[313713736,1707601853163,-500.0,0.0003863,30]
[313713737,1707601853173,-500.0,0.0003863,30]
[313713738,1707601853184,-2240.69,0.0003863,30]
[313713739,1707601853194,-500.0,0.0003863,30]
[313713740,1707601853204,-500.0,0.0003863,2]
[313713741,1707601853214,-500.0,0.0003863,30]
[313713742,1707601853225,-500.0,0.0003863,30]
[313713743,1707601853235,-500.0,0.0003863,30]
[313713744,1707601853245,-500.0,0.0003863,30]
[313713745,1707601853255,-500.0,0.0003863,30]
[313713746,1707601853266,-500.0,0.0003863,30]
[313713747,1707601853276,-500.0,0.0003863,30]
[313713748,1707601853286,-500.0,0.0003863,30]
[313713749,1707601853297,-500.0,0.0003863,30]
[313713750,1707601853308,-500.0,0.0003863,30]
[313713751,1707601853318,-2274.07,0.0003863,30]
[313713752,1707601853328,-500.0,0.0003863,30]
[313713753,1707601853338,-500.0,0.0003863,30]
[313713754,1707601853348,-500.0,0.0003863,30]
[313713755,1707601853359,-500.0,0.0003863,30]
[313713756,1707601853369,-500.0,0.0003863,30]
[313713757,1707601853379,-500.0,0.0003863,30]
[313713758,1707601853389,-1307.77,0.0003863,30]
[313713759,1707601853399,-500.0,0.0003863,30]
[313713760,1707601853409,-1625.66,0.0003863,30]
[313713761,1707601853420,-500.0,0.0003863,30]
[313713762,1707601853429,-528.28,0.0003863,30]
[313713763,1707601853439,-500.0,0.0003863,30]
[313713764,1707601853449,-500.0,0.0003863,30]
[313713765,1707601853459,-1329.42,0.0003863,30]
[313713766,1707601853469,-1376.47,0.0003863,30]
[313713767,1707601853479,-1334.71,0.0003863,30]
[313713768,1707601853489,-881.37,0.0003863,30]
[313713769,1707601853498,-500.0,0.0003863,30]
[313713770,1707601853509,-500.0,0.0003863,30]
[313713771,1707601853518,-500.0,0.0003863,30]
[313713772,1707601853528,-616.58,0.0003863,30]
[313713773,1707601853539,-500.0,0.0003863,30]
[313713774,1707601853549,-500.0,0.0003863,30]
[313713775,1707601853560,-500.0,0.0003863,2]
[313713776,1707601853575,-500.0,0.0003863,30]
[313713777,1707601853586,-2669.57,0.0003863,30]
[313713778,1707601853596,-500.0,0.0003863,30]
[313713779,1707601853608,-577.16,0.0003863,2]
[313713780,1707601853618,-1078.4,0.0003863,30]
[313713781,1707601853628,-2323.02,0.0003863,30]
[313713782,1707601853639,-512.53723513,0.0003863,30]
[313713783,1707601853649,-500.0,0.0003863,30]
[313713784,1707601853660,-4587.53,0.0003863,30]
[313713785,1707601853670,-943.15,0.0003863,30]
[313713786,1707601853680,-743.65,0.0003863,30]
[313713787,1707601853690,-744.84,0.0003863,30]
[313713788,1707601853700,-500.0,0.0003863,30]
[313713789,1707601853710,-500.0,0.0003863,30]
[313713790,1707601853720,-932.41,0.0003863,30]
[313713791,1707601853730,-500.0,0.0003863,30]
[313713792,1707601853741,-1206.69,0.0003863,30]
[313713793,1707601853750,-500.0,0.0003863,30]
[313713794,1707601853761,-500.0,0.0003863,30]
[313713795,1707601853771,-4530.38,0.0003863,30]
[313713796,1707601853781,-500.0,0.0003863,30]
[313713797,1707601853791,-1707.67,0.0003863,30]
[313713798,1707601853802,-500.0,0.0003863,30]
[313713799,1707601853812,-500.0,0.0003863,30]
[313713800,1707601853822,-500.0,0.0003863,30]
[313713801,1707601853831,-500.0,0.0003863,30]
[313713802,1707601853842,-500.0,0.0003863,30]
[313713803,1707601853852,-526.81,0.0003863,30]
[313713804,1707601853862,-500.0,0.0003863,30]
[313713805,1707601853872,-1406.78,0.0003863,30]
[313713806,1707601853882,-647.73,0.0003863,30]
[313713807,1707601853892,-500.0,0.0003863,30]
[313713808,1707601853901,-500.0,0.0003863,30]
[313713809,1707601853911,-1864.35,0.0003863,30]
[313713810,1707601853921,-503.68282857,0.0003863,30]
[313713811,1707601853937,-2927.06,0.0003863,30]
[313713812,1707601853951,-630.9,0.0003863,30]
[313713813,1707601853962,-360.49,0.0003863,30]
[313713814,1707601853973,-500.0,0.0003863,30]
[313713815,1707601854242,-500.0,0.0003863,30]
[313713816,1707601854277,-1519.09,0.0003863,30]
[313713817,1707601854287,-500.0,0.0003863,30]
[313713818,1707601854296,-1039.09,0.0003863,30]
[313713819,1707601854307,-1508.38,0.0003863,30]
[313713820,1707601854316,-523.71,0.0003863,30]
[313713821,1707601854325,-1290.83,0.0003863,30]
[313713822,1707601854335,-500.0,0.0003863,30]
[313713823,1707601854344,-574.9,0.0003863,30]
[313713824,1707601854353,-532.0,0.0003863,30]
[313713825,1707601854362,-500.0,0.0003863,30]
[313713826,1707601854372,-500.0,0.0003863,30]
[313713827,1707601854385,-500.0,0.0003863,30]
[313713828,1707601854395,-348.95,0.0003863,30]
[313713829,1707601854405,-1239.46,0.0003863,30]
[313713830,1707601854415,-607.24,0.0003863,30]
[313713831,1707601854424,-769.27,0.0003863,30]
[313713832,1707601854434,-500.0,0.0003863,30]
[313713833,1707601854444,-500.0,0.0003863,30]
[313713834,1707601854453,-1293.56,0.0003863,30]
[313713835,1707601854464,-1594.59,0.0003863,30]
[313713836,1707601854474,-1374.11,0.0003863,30]
[313713837,1707601854484,-572.05,0.0003863,30]
[313713838,1707601854496,-500.0,0.0003863,30]
[313713839,1707601854517,-846.98,0.0003863,30]
[313713840,1707601854532,-500.0,0.0003863,30]
[313713841,1707601854542,-2406.41,0.0003863,30]
[313713842,1707601854552,-500.0,0.0003863,30]
[313713843,1707601854563,-500.0,0.0003863,30]
[313713844,1707601854576,-500.0,0.0003863,30]
[313713845,1707601854586,-500.0,0.0003863,30]
[313713846,1707601854595,-642.45,0.0003863,30]
[313713847,1707601854606,-2633.36,0.0003863,30]
[313713848,1707601854615,-500.0,0.0003863,30]
[313713849,1707601854625,-683.9,0.0003863,30]
[313713850,1707601854634,-500.0,0.0003863,30]
[313713851,1707601854645,-500.0,0.0003863,30]
[313713852,1707601854654,-1941.25,0.0003863,30]
[313713853,1707601854663,-500.0,0.0003863,30]
[313713854,1707601854673,-500.0,0.0003863,30]
[313713855,1707601854682,-800.43,0.0003863,30]
[313713856,1707601854692,-500.0,0.0003863,30]
[313713857,1707601854702,-500.0,0.0003863,30]
[313713858,1707601854712,-2269.39,0.0003863,30]
[313713859,1707601854721,-1008.96,0.0003863,30]
[313713860,1707601854731,-500.0,0.0003863,30]
[313713861,1707601854740,-500.0,0.0003863,30]
[313713862,1707601854750,-500.0,0.0003863,30]
[313713863,1707601854759,-1919.56,0.0003863,30]
[313713864,1707601854769,-3274.17,0.0003863,30]
[313713865,1707601854779,-500.0,0.0003863,30]
[313713866,1707601854788,-565.81,0.0003863,30]
[313713867,1707601854798,-500.0,0.0003863,30]
[313713868,1707601854807,-500.0,0.0003863,30]
[313713869,1707601854817,-500.0,0.0003863,30]
[313713870,1707601854826,-1427.37,0.0003863,30]
[313713871,1707601854836,-500.0,0.0003863,30]
[313713872,1707601854846,-500.0,0.0003863,30]
[313713873,1707601854855,-500.0,0.0003863,30]
[313713874,1707601854865,-888.4,0.0003863,30]
[313713875,1707601854875,-500.0,0.0003863,30]
[313713876,1707601854885,-500.0,0.0003863,30]
[313713877,1707601854894,-558.56,0.0003863,30]
[313713878,1707601854903,-500.0,0.0003863,30]
[313713879,1707601854913,-2572.05,0.0003863,30]
[313713880,1707601854922,-500.0,0.0003863,30]
[313713881,1707601854935,-1202.85,0.0003863,30]
[313713882,1707601854945,-1220.73,0.0003863,30]
[313713883,1707601854955,-960.75,0.0003863,30]
[313713884,1707601854964,-500.0,0.0003863,30]
[313713885,1707601854974,-500.0,0.0003863,30]
[313713886,1707601854984,-500.0,0.0003863,30]
[313713887,1707601854993,-500.0,0.0003863,30]
[313713888,1707601855003,-762.82,0.0003863,30]
[313713889,1707601855013,-551.31,0.0003863,30]
[313713890,1707601855023,-500.0,0.0003863,30]
[313713891,1707601855032,-896.5,0.0003863,30]
[313713892,1707601855042,-500.0,0.0003863,30]
[313713893,1707601855052,-629.98,0.0003863,30]
[313713894,1707601855061,-500.0,0.0003863,30]
[313713895,1707601855071,-442.27,0.0003863,30]
[313713896,1707601855080,-2391.63,0.0003863,30]
[313713897,1707601855090,-689.25,0.0003863,30]
[313713898,1707601855099,-500.0,0.0003863,30]
[313713899,1707601855109,-1838.86,0.0003863,30]
[313713900,1707601855118,-2559.04,0.0003863,30]
[313713901,1707601855128,-500.0,0.0003863,30]
[313713902,1707601855137,-1498.61,0.0003863,30]
[313713903,1707601855147,-500.0,0.0003863,30]
[313713904,1707601855158,-500.0,0.0003863,30]
[313713905,1707601855167,-377.55,0.0003863,30]
[313713906,1707601855176,-500.0,0.0003863,30]
[313713907,1707601855186,-500.0,0.0003863,30]
[313713908,1707601855196,-500.0,0.0003863,30]
[313713909,1707601855205,-500.0,0.0003863,30]
[313713910,1707601855215,-1021.32,0.0003863,30]
[313713911,1707601855225,-500.0,0.0003863,30]
[313713912,1707601855235,-2234.59,0.0003863,30]
[313713913,1707601855244,-1365.79,0.0003863,5]
[313713914,1707601855254,-514.47,0.0003863,30]
[313713915,1707601855263,-612.67,0.0003863,30]
[313713916,1707601855273,-500.0,0.0003863,30]
[313713917,1707601855282,-500.0,0.0003863,30]
[313713918,1707601855292,-500.0,0.0003863,30]
[313713919,1707601855301,-500.0,0.0003863,30]
[313713920,1707601855311,-500.0,0.0003863,30]
[313713921,1707601855320,-500.0,0.0003863,30]
[313713922,1707601855330,-586.91,0.0003863,30]
[313713923,1707601855339,-500.0,0.0003863,30]
[313713924,1707601855349,-1186.41,0.0003863,30]
[313713925,1707601855359,-500.0,0.0003863,30]
[313713926,1707601855368,-500.0,0.0003863,30]
[313713927,1707601855377,-371.82755853,0.00038659,7]
[313713928,1707601855387,-152.78407078,0.00038786,2]
[313713929,1707601855397,-150.0,0.00038789,2]
[313713930,1707601855406,-21463.63473487,0.000388,4]
[313713931,1707601855416,-153.83,0.000388,3]
[313713932,1707601855425,-153.83,0.000388,3]
[313713933,1707601855435,-150.0,0.000388,28]
[313713934,1707601855444,-522.13,0.00038863,7]
[313713935,1707601855454,-522.13,0.00038863,7]
[313713936,1707601855464,-154.15154957,0.00038864,7]
[313713937,1707601855477,-3586.85,0.00038879,30]
[313713938,1707601855487,-3586.85,0.00038879,30]
[313713939,1707601855496,-43894.50350285,0.0003888,2]
[313713940,1707601855506,-43894.50350283,0.0003888,2]
[313713941,1707601855515,-43894.50350283,0.0003888,2]
[313713942,1707601855525,-43894.50350283,0.0003888,2]
[313713943,1707601855535,-43894.50350283,0.0003888,2]
[313713944,1707601855544,-43894.50350283,0.0003888,2]
[313713945,1707601855554,-43894.50350283,0.0003888,2]
[313713946,1707601855565,-43894.50350283,0.0003888,2]
[313713947,1707601855576,-43894.50350283,0.0003888,2]
[313713948,1707601855585,-4022.05534833,0.000389,15]
[313713949,1707601855595,-158.16523237,0.000389,4]
[313713950,1707601855605,-3586.85,0.00038903,30]
[313713951,1707601855615,-3586.85,0.00038903,30]
[313713952,1707601855624,-3586.85,0.00038903,30]
[313713953,1707601855634,-3586.85,0.00038903,30]
[313713954,1707601855644,-3586.87981926,0.00038903,30]
[313713955,1707601855654,-155.0,0.00038904,4]
[313713956,1707601855664,-3443.85396688,0.00038904,5]
[313713957,1707601855674,-500.0,0.00038904,30]
[313713958,1707601855683,-500.0,0.00038904,30]
[313713959,1707601855693,-500.0,0.00038904,30]
[313713960,1707601855702,-500.0,0.00038904,30]
[313713961,1707601855712,-500.0,0.00038904,30]
[313713962,1707601855721,-500.0,0.00038904,30]
[313713963,1707601855731,-500.0,0.00038904,30]
[313713964,1707601855740,-536.86406194,0.00038904,30]
[313713965,1707601855749,-500.0,0.00038904,30]
[313713966,1707601855758,-500.0,0.00038904,30]
[313713967,1707601855768,-500.0,0.00038904,30]
[313713968,1707601855777,-500.0,0.00038904,30]
[313713969,1707601855787,-500.0,0.00038904,30]
[313713970,1707601855796,-606.18954016,0.00038904,30]
[313713971,1707601855807,-527.66,0.00038904,30]
[313713972,1707601855817,-500.0,0.00038904,30]
[313713973,1707601855826,-500.0,0.00038904,30]
[313713974,1707601855835,-500.0,0.00038904,30]
[313713975,1707601855845,-500.0,0.00038904,30]
[313713976,1707601855854,-500.0,0.00038904,30]
[313713977,1707601855864,-500.0,0.00038904,30]
[313713978,1707601855873,-500.0,0.00038904,30]
[313713979,1707601855883,-500.0,0.00038904,30]
[313713980,1707601855893,-500.0,0.00038904,30]
[313713981,1707601855902,-500.0,0.00038904,7]
[313713982,1707601855913,-500.0,0.00038904,30]
[313713983,1707601855922,-500.0,0.00038904,30]
[313713984,1707601855932,-500.0,0.00038904,30]
[313713985,1707601855942,-500.0,0.00038904,30]
[313713986,1707601855951,-500.0,0.00038904,30]
[313713987,1707601855961,-500.0,0.00038904,30]
[313713988,1707601855971,-500.0,0.00038904,30]
[313713989,1707601855981,-626.88,0.00038904,30]
[313713990,1707601855990,-500.0,0.00038904,30]
[313713991,1707601856000,-500.0,0.00038904,30]
[313713992,1707601856010,-500.0,0.00038904,30]
[313713993,1707601856019,-829.35,0.00038904,30]
[313713994,1707601856029,-500.0,0.00038904,30]
[313713995,1707601856038,-500.0,0.00038904,30]
[313713996,1707601856047,-500.0,0.00038904,30]
[313713997,1707601856057,-582.77,0.00038904,30]
[313713998,1707601856066,-162.66316041,0.00038904,30]
[313713999,1707601856076,-500.0,0.00038904,30]
[313714000,1707601856085,-500.0,0.00038904,30]
[313714001,1707601856095,-673.15,0.00038904,30]
[313714002,1707601856104,-500.0,0.00038904,30]
[313714003,1707601856114,-635.99,0.00038904,30]
[313714004,1707601856123,-1007.19,0.00038904,30]
[313714005,1707601856132,-500.0,0.00038904,30]
[313714006,1707601856142,-763.66,0.00038904,30]
[313714007,1707601856151,-500.0,0.00038904,30]
[313714008,1707601856161,-500.0,0.00038904,30]
[313714009,1707601856170,-500.0,0.00038904,30]
[313714010,1707601856180,-500.0,0.00038904,30]
[313714011,1707601856189,-500.0,0.00038904,30]
[313714012,1707601856199,-534.16,0.00038904,30]
[313714013,1707601856208,-500.0,0.00038904,30]
[313714014,1707601856218,-500.0,0.00038904,30]
[313714015,1707601856227,-500.0,0.00038904,30]
[313714016,1707601856236,-500.0,0.00038904,30]
[313714017,1707601856246,-838.11,0.00038904,30]
[313714018,1707601856255,-250.0,0.00038904,30]
[313714019,1707601856265,-1102.36,0.00038904,30]
[313714020,1707601856274,-500.0,0.00038904,30]
[313714021,1707601856283,-500.0,0.00038904,30]
[313714022,1707601856293,-500.0,0.00038904,30]
[313714023,1707601856302,-500.0,0.00038904,30]
[313714024,1707601856311,-500.0,0.00038904,30]
[313714025,1707601856321,-500.0,0.00038904,30]
[313714026,1707601856330,-500.0,0.00038904,30]
[313714027,1707601856340,-600.03,0.00038904,30]
[313714028,1707601856349,-500.0,0.00038904,30]
[313714029,1707601856358,-500.0,0.00038904,30]
[313714030,1707601856368,-500.0,0.00038904,30]
[313714031,1707601856377,-500.0,0.00038904,30]
[313714032,1707601856387,-642.55,0.00038904,30]
[313714033,1707601856396,-976.35,0.00038904,30]
[313714034,1707601856405,-717.72,0.00038904,30]
[313714035,1707601856415,-500.0,0.00038904,30]
[313714036,1707601856424,-500.0,0.00038904,30]
[313714037,1707601856434,-500.0,0.00038904,30]
[313714038,1707601856444,-500.0,0.00038904,30]
[313714039,1707601856454,-500.0,0.00038904,30]
[313714040,1707601856463,-554.63,0.00038904,30]
[313714041,1707601856472,-500.0,0.00038904,30]
[313714042,1707601856482,-732.11,0.00038904,30]
[313714043,1707601856492,-500.0,0.00038904,30]
[313714044,1707601856502,-713.83,0.00038904,30]
[313714045,1707601856511,-422.44936709,0.00038904,30]